bitfinex-derivatives/quotes_SOLF0:USTF0_20250509
["timestamp","ask_amount","ask_price","bid_price","bid_amount"]
[1746795686786,26.78,172.57,172.5,6.91975045]
[1746795686987,26.78,172.57,172.51,6.91975045]
[1746795687183,26.78,172.57,172.52,6.91975045]
[1746795687385,26.78,172.57,172.48,10.38]
[1746795687585,26.78,172.57,172.49,6.43185832]
[1746795687784,26.78,172.57,172.5,6.43185832]
[1746795687989,26.78,172.57,172.51,6.43185832]
[1746795688189,26.78,172.57,172.48,10.38]
[1746795689087,26.78,172.57,172.49,5.7982]
[1746795689987,26.78,172.57,172.48,10.38]
[1746795690495,26.78,172.57,172.5,5.7978]
[1746795690897,5.7973,172.52,172.5,5.7978]
[1746795691199,26.78,172.57,172.51,5.7975]
[1746795691397,5.796,172.56,172.46,14.49]
[1746795691588,26.78,172.57,172.46,14.49]
[1746795691997,5.7968,172.54,172.46,14.49]
[1746795692194,5.7968,172.54,172.46,41.27]
[1746795692394,5.7968,172.54,172.5,5.7977]
[1746795692595,5.7968,172.54,172.46,26.78]
[1746795692899,5.7968,172.54,172.5,5.7977]
[1746795693102,26.78,172.57,172.46,26.78]
[1746795693490,358.8012,172.61,172.46,26.78]
[1746795693693,26.78,172.59,172.47,1.7963]
[1746795694095,5.7961,172.56,172.47,1.7963]
[1746795694599,26.78,172.58,172.47,1.7963]
[1746795694795,358.8012,172.61,172.47,1.7963]
[1746795694992,383.78,172.61,172.48,10.38]
[1746795695297,1.9253,172.65,172.49,11.5965]
[1746795695489,26.78,172.63,172.5,26.78]
[1746795695694,1.9253,172.65,172.51,1.9546]
[1746795695898,26.78,172.63,172.51,1.9546]
[1746795696098,32.5736,172.63,172.59,5.7947]
[1746795696300,1.9253,172.65,172.54,26.78]
[1746795696700,1.9253,172.65,172.55,1.8385]
[1746795697002,362.7925,172.67,172.55,1.8385]
[1746795697499,5.7925,172.67,172.62,5.7937]
[1746795697699,28.6176,172.68,172.59,26.78]
[1746795697898,28.6176,172.68,172.64,5.7932]
[1746795698101,28.6176,172.68,172.59,26.78]
[1746795698804,5.7931,172.65,172.59,26.78]
[1746795699101,28.6176,172.68,172.59,26.78]
[1746795699302,5.7923,172.67,172.59,26.78]
[1746795699506,5.7923,172.67,172.63,5.7935]
[1746795699698,5.7923,172.67,172.59,26.78]
[1746795700002,28.6176,172.68,172.59,26.78]
[1746795700302,5.7928,172.66,172.62,5.7939]
[1746795700602,28.6176,172.68,172.59,26.78]
[1746795701205,45.48861094,172.68,172.55,1.8385]
[1746795701406,1.9174,172.67,172.55,1.8385]
[1746795701599,358.9174,172.67,172.55,1.8385]
[1746795701898,5.7938,172.63,172.6,5.7945]
[1746795702099,26.76,172.63,172.55,1.8385]
[1746795702901,5.7943,172.61,172.57,5.7953]
[1746795703098,26.76,172.63,172.53,485.84]
[1746795703899,26.76,172.63,172.52,1.876]
[1746795704202,16.87101094,172.6,172.46,41.25]
[1746795704402,26.76,172.59,172.5,5.7976]
[1746795704598,30.5378,172.59,172.47,26.76]
[1746795704807,5.7978,172.51,172.47,5.7987]
[1746795705204,26.76,172.54,172.46,18.3832]
[1746795705910,26.76,172.54,172.5,5.7977]
[1746795706307,373.87101094,172.58,172.46,18.3832]
[1746795706500,26.76,172.57,172.52,5.797]
[1746795706806,26.76,172.57,172.46,18.3832]
[1746795707912,26.76,172.57,172.53,5.7968]
[1746795708108,26.76,172.57,172.47,26.76]
[1746795708410,357.0,172.58,172.48,12.0]
[1746795709010,357.0,172.58,172.57,5.7956]
[1746795709312,26.76,172.61,172.53,26.76]
[1746795710009,26.76,172.61,172.58,5.7949]
[1746795710309,26.76,172.61,172.53,26.76]
[1746795712611,26.76,172.61,172.53,37.13]
[1746795712804,26.76,172.61,172.57,5.7953]
[1746795713610,26.76,172.61,172.53,37.13]
[1746795713910,26.76,172.61,172.57,5.7954]
[1746795714107,32.5543,172.61,172.53,37.13]
[1746795714303,26.76,172.61,172.53,37.13]
[1746795714506,26.76,172.61,172.57,5.7955]
[1746795715312,32.5544,172.61,172.57,5.7955]
[1746795715917,32.5544,172.61,172.58,5.7952]
[1746795716524,26.76,172.61,172.59,5.7948]
[1746795717217,1.9002,172.62,172.53,10.37]
[1746795717419,357.0,172.67,172.54,3.7286]
[1746795717719,389.5523,172.67,172.55,26.76]
[1746795717919,135.56027332,172.69,172.55,26.76]
[1746795718118,162.32027332,172.69,172.55,26.76]
[1746795718319,28.6364,172.69,172.55,26.76]
[1746795718515,28.6364,172.69,172.56,14.48]
[1746795719020,5.7926,172.66,172.61,5.794]
[1746795719524,5.7922,172.67,172.56,14.48]
[1746795719918,5.7922,172.67,172.62,5.7938]
[1746795720217,28.6364,172.69,172.59,26.76]
[1746795720620,5.7913,172.7,172.59,26.76]
[1746795720815,32.5513,172.7,172.59,26.76]
[1746795721820,26.76,172.7,172.66,5.7925]
[1746795722218,379.66171094,172.72,172.66,5.7925]
[1746795722423,383.76,172.72,172.63,26.76]
[1746795722623,26.76,172.72,172.64,1.9233]
[1746795723020,26.76,172.72,172.7,5.7909]
[1746795723421,26.76,172.72,172.64,3.8568]
[1746795723622,11.4554,172.75,172.7,5.791]
[1746795723824,5.6658,172.75,172.64,3.8568]
[1746795724124,5.6658,172.75,172.71,5.7908]
[1746795724526,5.6658,172.75,172.64,5.7703]
[1746795724816,5.6658,172.75,172.63,26.76]
[1746795725015,5.6658,172.75,172.64,26.99]
[1746795725214,5.7908,172.72,172.67,5.7921]
[1746795725423,5.6658,172.75,172.64,26.99]
[1746795725724,3.7487,172.75,172.71,5.7908]
[1746795726126,3.7487,172.75,172.64,26.99]
[1746795726425,3.7487,172.75,172.71,5.7908]
[1746795726826,3.7487,172.75,172.67,26.74]
[1746795727027,1.8853,172.75,172.72,5.7905]
[1746795727228,26.74,172.77,172.67,26.74]
[1746795727724,373.87101094,172.79,172.67,26.74]
[1746795727725,357.0,172.79,172.67,26.74]
[1746795728020,28.6631,172.8,172.68,3.5925]
[1746795728526,28.6631,172.8,172.76,5.7889]
[1746795728728,28.6631,172.8,172.71,26.74]
[1746795729119,16.87101094,172.78,172.68,3.5925]
[1746795729321,16.87101094,172.78,172.67,26.74]
[1746795730223,45.53411094,172.8,172.67,26.74]
[1746795730826,45.53411094,172.8,172.71,5.7908]
[1746795730827,5.7898,172.75,172.71,5.7908]
[1746795731127,26.74,172.75,172.71,5.7908]
[1746795731625,5.79,172.74,172.71,5.7908]
[1746795733131,26.74,172.75,172.68,10.36]
[1746795733334,43.61101094,172.75,172.68,10.36]
[1746795733524,1.9716,172.74,172.68,10.36]
[1746795733724,5.7915,172.69,172.68,10.36]
[1746795734131,5.7915,172.69,172.64,26.99]
[1746795734324,5.7915,172.69,172.65,5.7927]
[1746795734524,3.6594,172.73,172.64,26.99]
[1746795734525,1.8068,172.73,172.64,26.99]
[1746795734829,1.8068,172.73,172.69,5.7914]
[1746795735124,1.8068,172.73,172.64,26.99]
[1746795735526,5.7911,172.71,172.67,5.792]
[1746795735839,1.8068,172.73,172.64,26.99]
[1746795736027,1.8068,172.73,172.62,28.5429]
[1746795736227,1.8068,172.73,172.67,5.792]
[1746795736429,1.8068,172.73,172.62,28.5429]
[1746795737035,357.0,172.74,172.62,28.5429]
[1746795737230,357.0,172.74,172.72,5.7903]
[1746795737423,1.8526,172.78,172.72,5.7903]
[1746795737922,1.8526,172.78,172.69,26.72]
[1746795738335,5.7901,172.74,172.7,5.791]
[1746795738528,1.8526,172.78,172.69,26.72]
[1746795739429,28.6798,172.79,172.69,26.72]
[1746795739828,34.4682,172.79,172.75,5.7894]
[1746795740131,28.6798,172.79,172.69,26.72]
[1746795740328,5.79,172.74,172.66,3.7823]
[1746795740533,5.79,172.74,172.67,26.72]
[1746795740732,28.6798,172.79,172.67,26.72]
[1746795741036,5.7896,172.75,172.67,26.72]
[1746795741239,1.9598,172.79,172.67,26.72]
[1746795741424,26.72,172.78,172.67,26.72]
[1746795741622,1.9598,172.79,172.67,26.72]
[1746795742032,5.7892,172.76,172.72,5.7903]
[1746795742228,1.9598,172.79,172.67,26.72]
[1746795742733,5.789,172.77,172.67,26.72]
[1746795742935,1.9598,172.79,172.67,26.72]
[1746795743736,1.9598,172.79,172.66,30.5023]
[1746795743939,16.87101094,172.76,172.59,12.5895]
[1746795744142,28.6125,172.75,172.64,26.72]
[1746795744844,5.7908,172.72,172.67,5.7921]
[1746795745139,5.7908,172.72,172.62,3.6229]
[1746795745343,5.7908,172.72,172.63,26.72]
[1746795745538,28.6125,172.75,172.63,26.72]
[1746795746643,26.72,172.75,172.63,26.72]
[1746795747246,357.0,172.78,172.63,26.72]
[1746795747441,5.7891,172.77,172.64,11.5861]
[1746795747746,357.0,172.78,172.64,11.5861]
[1746795747935,5.7895,172.76,172.71,5.7907]
[1746795748140,357.0,172.78,172.68,26.72]
[1746795748544,5.7891,172.77,172.72,5.7903]
[1746795749043,362.7886,172.78,172.73,5.79]
[1746795749240,357.0,172.78,172.69,1.9636]
[1746795749443,357.0,172.78,172.69,3.9441]
[1746795749743,357.0,172.78,172.75,5.7895]
[1746795750147,362.7886,172.78,172.74,5.7897]
[1746795750438,357.0,172.78,172.69,3.9441]
[1746795750640,357.0,172.78,172.69,5.7494]
[1746795751245,357.0,172.78,172.75,5.7893]
[1746795752346,362.7886,172.78,172.74,5.7897]
[1746795752946,5.7886,172.78,172.74,5.7897]
[1746795753347,1.9598,172.79,172.75,5.7893]
[1746795753842,5.7886,172.78,172.75,5.7893]
[1746795754543,5.7886,172.78,172.76,5.7891]
[1746795754751,7.7481,172.79,172.69,5.7494]
[1746795754948,357.0,172.84,172.69,5.7494]
[1746795755146,5.787,172.83,172.69,5.7494]
[1746795755345,465.74175936,172.84,172.69,5.7494]
[1746795755546,465.74175936,172.84,172.7,11.5823]
[1746795755741,439.02175936,172.84,172.69,464.3094]
[1746795756252,444.80845936,172.84,172.71,11.5816]
[1746795756552,439.02175936,172.84,172.72,26.7]
[1746795756748,82.02175936,172.84,172.83,5.7869]
[1746795756946,82.02175936,172.84,172.78,26.7]
[1746795757345,82.02175936,172.84,172.83,5.7869]
[1746795757847,5.7852,172.88,172.82,5.7871]
[1746795758051,87.62455936,172.9,172.79,3.843]
[1746795758446,87.62455936,172.9,172.81,5.7873]
[1746795758852,5.786,172.86,172.81,5.7873]
[1746795759149,87.62455936,172.9,172.82,5.7871]
[1746795759350,5.7858,172.87,172.79,3.843]
[1746795759551,87.62455936,172.9,172.79,3.843]
[1746795759750,87.62455936,172.9,172.82,5.7872]
[1746795759953,5.7861,172.86,172.82,5.7872]
[1746795760150,5.6028,172.9,172.82,5.7872]
[1746795761145,5.6028,172.9,172.83,5.7868]
[1746795761453,5.6028,172.9,172.79,3.843]
[1746795761652,5.6028,172.9,172.85,5.786]
[1746795761854,5.6028,172.9,172.79,3.843]
[1746795762554,5.7851,172.89,172.79,3.843]
[1746795763449,5.7851,172.89,172.79,5.8057]
[1746795764053,3.7693,172.9,172.79,5.8057]
[1746795764261,3.7693,172.9,172.8,26.7]
[1746795764750,5.7861,172.86,172.81,5.7874]
[1746795764956,43.57101094,172.87,172.76,26.7]
[1746795765458,43.57101094,172.87,172.8,5.7878]
[1746795765758,5.7871,172.83,172.79,5.7881]
[1746795766158,43.57101094,172.87,172.75,28.5316]
[1746795766456,16.87101094,172.87,172.75,28.5316]
[1746795766658,43.57101094,172.87,172.75,28.5316]
[1746795766860,5.786,172.86,172.75,28.5316]
[1746795767059,43.57101094,172.87,172.75,28.5316]
[1746795767359,5.7861,172.86,172.75,28.5316]
[1746795767659,43.57101094,172.87,172.75,28.5316]
[1746795768360,5.7861,172.86,172.81,5.7873]
[1746795768660,43.57101094,172.87,172.81,5.7873]
[1746795769161,5.7861,172.86,172.81,5.7873]
[1746795769661,5.7861,172.86,172.82,5.7872]
[1746795769863,3.7693,172.9,172.79,26.68]
[1746795770161,26.68,172.89,172.79,26.68]
[1746795770363,3.7693,172.9,172.79,26.68]
[1746795770564,5.7848,172.89,172.8,1.9286]
[1746795771063,1.9725,172.9,172.8,1.9286]
[1746795771765,5.7851,172.89,172.8,1.9286]
[1746795772063,5.7851,172.89,172.84,5.7863]
[1746795772364,5.7851,172.89,172.85,5.786]
[1746795772565,5.7852,172.88,172.8,1.9286]
[1746795772966,5.7852,172.88,172.84,5.7863]
[1746795773168,5.7852,172.88,172.8,1.9286]
[1746795773468,5.7849,172.89,172.85,5.7861]
[1746795773768,5.7849,172.89,172.8,1.9286]
[1746795774271,1.9725,172.9,172.8,1.9286]
[1746795774872,5.785,172.89,172.8,1.9286]
[1746795775170,1.9725,172.9,172.84,5.7862]
[1746795775368,1.9725,172.9,172.8,1.9286]
[1746795775670,1.9725,172.9,172.85,5.786]
[1746795775869,1.9725,172.9,172.8,1.9286]
[1746795776066,1.9725,172.9,172.75,1.8316]
[1746795776266,1.9725,172.9,172.76,28.4893]
[1746795776471,5.786,172.86,172.76,28.4893]
[1746795776664,1.9725,172.9,172.81,5.7875]
[1746795776865,1.9725,172.9,172.76,28.4893]
[1746795777068,5.786,172.86,172.76,28.4893]
[1746795777466,1.9725,172.9,172.81,5.7873]
[1746795777671,28.6525,172.9,172.8,26.68]
[1746795778173,28.6525,172.9,172.85,5.786]
[1746795778367,28.6525,172.9,172.8,26.68]
[1746795778673,5.7851,172.89,172.8,26.68]
[1746795778873,28.6525,172.9,172.8,26.68]
[1746795779373,34.4372,172.9,172.8,26.68]
[1746795779972,28.6525,172.9,172.8,26.68]
[1746795780173,1.9725,172.9,172.8,26.68]
[1746795780370,1.9725,172.9,172.86,5.7856]
[1746795780572,1.9725,172.9,172.8,26.68]
[1746795780871,1.9725,172.9,172.81,1.9063]
[1746795781068,26.66,172.92,172.81,1.9063]
[1746795781265,32.4441,172.92,172.88,5.785]
[1746795781778,5.7842,172.91,172.88,5.785]
[1746795782074,26.66,172.92,172.81,1.9063]
[1746795782677,32.444,172.92,172.81,1.9063]
[1746795783277,5.6072,172.94,172.81,1.9063]
[1746795783475,16.87101094,172.98,172.82,1.9308]
[1746795783674,26.66,172.98,172.82,1.9308]
[1746795783976,26.66,172.98,172.83,13.4724]
[1746795784176,26.66,172.98,172.84,26.66]
[1746795784878,5.783,172.95,172.9,5.7843]
[1746795785077,5.783,172.95,172.84,26.66]
[1746795785275,26.66,172.98,172.84,26.66]
[1746795785474,82.02175936,172.99,172.84,26.66]
[1746795785677,26.66,172.98,172.84,26.66]
[1746795786773,26.66,172.98,172.83,1.8988]
[1746795786969,26.66,172.98,172.84,26.66]
[1746795787174,26.66,172.98,172.84,27.66]
[1746795787380,3.7811,173.0,172.84,27.66]
[1746795787676,26.66,172.99,172.84,27.66]
[1746795788179,5.7827,172.96,172.92,5.7835]
[1746795788379,43.53101094,172.98,172.85,26.66]
[1746795789876,5.7827,172.96,172.85,26.66]
[1746795790380,5.7824,172.97,172.93,5.7833]
[1746795790582,26.66,172.98,172.85,26.66]
[1746795790981,5.7828,172.96,172.92,5.7836]
[1746795791177,5.7828,172.96,172.89,26.66]
[1746795791377,5.7823,172.97,172.93,5.7833]
[1746795791583,26.66,172.98,172.93,5.7833]
[1746795792182,5.7827,172.96,172.93,5.7833]
[1746795792484,5.7829,172.95,172.92,5.7836]
[1746795792681,26.66,172.98,172.86,26.64]
[1746795793082,26.66,172.98,172.9,5.7843]
[1746795793383,26.66,172.98,172.86,26.64]
[1746795793586,5.7838,172.92,172.86,26.64]
[1746795793789,26.64,172.94,172.84,27.64]
[1746795794087,5.7842,172.91,172.88,5.785]
[1746795794394,5.7842,172.91,172.84,27.64]
[1746795794586,5.7839,172.92,172.89,5.7848]
[1746795794885,1.8618,172.93,172.89,5.7848]
[1746795795389,1.8618,172.93,172.84,27.64]
[1746795795887,1.8618,172.93,172.89,5.7848]
[1746795796086,1.8618,172.93,172.84,27.64]
[1746795796383,357.0,172.97,172.84,27.64]
[1746795796580,385.5629,172.97,172.84,27.64]
[1746795796987,5.7835,172.93,172.84,27.64]
[1746795797483,385.5629,172.97,172.84,27.64]
[1746795797886,5.7837,172.93,172.89,5.7846]
[1746795798087,385.5629,172.97,172.84,27.64]
[1746795798486,5.7831,172.95,172.91,5.784]
[1746795798785,385.5629,172.97,172.84,27.64]
[1746795798988,5.784,172.92,172.84,27.64]
[1746795799185,385.5629,172.97,172.84,27.64]
[1746795799585,5.7836,172.93,172.9,5.7844]
[1746795799787,5.7836,172.93,172.84,27.64]
[1746795799788,385.5629,172.97,172.84,27.64]
[1746795799984,358.9229,172.97,172.84,27.64]
[1746795800184,5.784,172.92,172.89,5.7846]
[1746795800488,26.64,172.92,172.84,1.0]
[1746795800685,5.7848,172.89,172.84,1.0]
[1746795800880,26.64,172.92,172.84,1.0]
[1746795801284,32.4239,172.92,172.89,5.7846]
[1746795801785,26.64,172.92,172.88,5.7849]
[1746795801988,26.64,172.92,172.84,1.0]
[1746795802290,26.64,172.92,172.89,5.7846]
[1746795802590,26.64,172.92,172.84,1.0]
[1746795802794,26.64,172.95,172.84,1.0]
[1746795802990,32.4229,172.95,172.91,5.7839]
[1746795803293,26.64,172.95,172.85,11.5723]
[1746795803489,5.7829,172.95,172.86,32.92184859]
[1746795803688,385.5629,172.97,172.87,6.28184859]
[1746795803887,385.5629,172.97,172.88,6.28184859]
[1746795804089,5.7846,172.9,172.89,6.84604907]
[1746795804593,5.7846,172.9,172.89,3.86924907]
[1746795804887,5.7846,172.9,172.84,1.0]
[1746795804888,5.7855,172.87,172.84,1.0]
[1746795805089,1.9841,172.9,172.84,1.0]
[1746795805291,1.9841,172.9,172.84,6.7863]
[1746795805682,1.9841,172.9,172.84,1.0]
[1746795806089,5.7858,172.87,172.84,1.0]
[1746795806292,1.9841,172.9,172.84,1.0]
[1746795806587,1.9841,172.9,172.85,5.7859]
[1746795806792,5.7852,172.89,172.84,1.0]
[1746795807191,5.7852,172.89,172.86,5.7856]
[1746795807490,7.7686,172.9,172.84,1.0]
[1746795807691,1.9841,172.9,172.84,1.0]
[1746795807886,28.6241,172.9,172.84,1.0]
[1746795809288,5.7862,172.85,172.84,1.0]
[1746795810197,1.8419,172.89,172.84,1.0]
[1746795810692,5.7858,172.87,172.84,6.7865]
[1746795811095,5.7858,172.87,172.84,1.0]
[1746795811296,5.7853,172.88,172.85,5.7862]
[1746795811596,1.8419,172.89,172.84,1.0]
[1746795813198,5.786,172.86,172.84,1.0]
[1746795813397,1.8419,172.89,172.84,6.7865]
[1746795813589,28.6241,172.9,172.84,1.0]
[1746795813794,83.79321991,172.94,172.84,1.0]
[1746795813986,26.62,172.92,172.84,1.0]
[1746795814188,26.62,172.91,172.84,1.0]
[1746795814393,5.7854,172.88,172.84,1.0]
[1746795814591,5.7854,172.88,172.85,5.786]
[1746795814794,26.62,172.91,172.84,1.0]
[1746795815098,5.7862,172.85,172.84,1.0]
[1746795816098,5.786,172.86,172.84,1.0]
[1746795816493,438.88761991,172.93,172.84,1.0]
[1746795816697,26.62,172.92,172.84,1.0]
[1746795817098,26.62,172.92,172.87,5.7855]
[1746795817996,357.0,172.93,172.88,5.7851]
[1746795818298,357.0,172.93,172.84,1.0]
[1746795818299,26.62,172.93,172.84,1.0]
[1746795818499,28.5256,172.94,172.84,1.0]
[1746795818804,5.7842,172.91,172.88,5.785]
[1746795819398,28.5256,172.94,172.88,5.785]
[1746795819803,28.5256,172.94,172.84,1.0]
[1746795820301,28.5256,172.94,172.88,5.785]
[1746795820501,28.5256,172.94,172.89,6.48212084]
[1746795820703,5.7844,172.91,172.9,6.48212084]
[1746795820902,26.62,172.94,172.9,6.48212084]
[1746795821101,3.7056,172.95,172.91,6.48212084]
[1746795821299,26.62,172.94,172.87,5.7853]
[1746795821602,26.62,172.94,172.88,6.51532022]
[1746795821802,26.62,172.94,172.89,6.51532022]
[1746795822102,26.62,172.94,172.9,6.51532022]
[1746795822306,26.62,172.94,172.91,6.51532022]
[1746795822509,5.7841,172.92,172.9,5.7845]
[1746795822808,26.62,172.94,172.91,6.5112303]
[1746795823007,5.7835,172.93,172.92,6.5112303]
[1746795823413,5.7835,172.93,172.92,6.51060814]
[1746795824108,5.784,172.92,172.89,5.7847]
[1746795824308,5.784,172.92,172.9,6.28512988]
[1746795824509,5.784,172.92,172.91,6.28512988]
[1746795826613,5.7836,172.93,172.91,6.28512988]
[1746795826815,5.7836,172.93,172.85,30.3834]
[1746795827114,5.7836,172.93,172.9,5.7842]
[1746795827413,5.784,172.92,172.85,30.3834]
[1746795827614,26.62,172.95,172.85,30.3834]
[1746795828113,5.784,172.92,172.89,5.7848]
[1746795828311,26.62,172.95,172.85,30.3834]
[1746795828510,26.62,172.95,172.88,5.7851]
[1746795828718,26.62,172.95,172.84,1.0]
[1746795829016,26.62,172.95,172.85,6.24617208]
[1746795829017,5.786,172.86,172.85,6.24617208]
[1746795829906,3.7576,172.9,172.85,6.24617208]
[1746795830109,30.3576,172.9,172.85,5.786]
[1746795830308,30.3576,172.9,172.84,1.0]
[1746795830510,5.7859,172.86,172.85,6.2000747]
[1746795830914,5.7859,172.86,172.84,1.0]
[1746795831110,5.7862,172.85,172.84,1.0]
[1746795831540,30.3576,172.9,172.84,7.19721505]
[1746795831858,30.3576,172.9,172.84,1.0]
[1746795832844,5.7862,172.85,172.84,1.0]
[1746795833050,30.3576,172.9,172.84,1.0]
[1746795833249,30.3576,172.9,172.85,6.22708613]
[1746795833452,5.7856,172.87,172.86,6.22708613]
[1746795834149,5.7855,172.88,172.86,6.22708613]
[1746795834482,5.7855,172.88,172.87,6.22708613]
[1746795835353,5.7855,172.88,172.85,5.7862]
[1746795835653,5.7855,172.88,172.86,6.46519271]
[1746795835846,5.7855,172.88,172.87,6.46519271]
[1746795836975,26.6,172.89,172.84,1.0]
[1746795837147,26.6,172.89,172.85,6.46304071]
[1746795837347,26.6,172.89,172.84,1.0]
[1746795838155,26.6,172.89,172.85,6.31868668]
[1746795838370,26.6,172.89,172.84,1.0]
[1746795839049,5.7862,172.85,172.84,1.0]
[1746795839756,32.3862,172.85,172.84,1.0]
[1746795841851,357.0,172.84,172.79,14.46]
[1746795842043,16.87101094,172.82,172.77,1.63]
[1746795842297,26.6,172.81,172.77,1.63]
[1746795842964,5.7885,172.78,172.77,1.63]
[1746795843455,26.6,172.81,172.72,5.7903]
[1746795843651,26.6,172.81,172.71,5.7908]
[1746795844159,5.7899,172.74,172.71,5.7908]
[1746795844453,26.6,172.76,172.71,5.7908]
[1746795844655,26.6,172.76,172.67,26.6]
[1746795845050,26.6,172.76,172.69,5.7914]
[1746795845253,26.6,172.76,172.63,5.7067]
[1746795845453,26.6,172.76,172.64,32.95281102]
[1746795845754,5.7904,172.73,172.7,5.7911]
[1746795846053,5.7904,172.73,172.71,6.35281102]
[1746795846249,5.7905,172.72,172.69,5.7914]
[1746795847254,5.7902,172.73,172.7,5.7911]
[1746795847951,26.6,172.76,172.71,5.7908]
[1746795848351,26.6,172.77,172.65,28.23]
[1746795849066,26.6,172.77,172.65,1.63]
[1746795849554,16.87101094,172.74,172.65,1.63]
[1746795849849,26.6,172.73,172.65,1.63]
[1746795850047,26.6,172.73,172.65,2.63]
[1746795850553,5.7918,172.69,172.65,2.63]
[1746795850757,26.6,172.73,172.65,2.63]
[1746795851442,26.6,172.73,172.65,8.4227]
[1746795852033,5.791,172.71,172.66,5.7923]
[1746795852335,26.6,172.73,172.65,2.63]
[1746795852918,5.791,172.71,172.66,5.7923]
[1746795853127,5.791,172.71,172.65,2.63]
[1746795854326,26.6,172.73,172.68,5.7918]
[1746795854626,26.6,172.73,172.65,2.63]
[1746795854828,5.7911,172.71,172.67,5.7921]
[1746795855022,26.6,172.73,172.67,5.7921]
[1746795856021,5.7916,172.69,172.65,2.63]
[1746795856226,32.3916,172.69,172.65,2.63]
[1746795856635,32.3916,172.69,172.66,5.7925]
[1746795857225,32.3916,172.69,172.67,5.7922]
[1746795857830,5.7919,172.68,172.65,2.63]
[1746795858030,26.6,172.69,172.65,2.63]
[1746795858323,26.6,172.69,172.66,5.7923]
[1746795859031,32.3916,172.69,172.66,5.7923]
[1746795859429,26.6,172.69,172.65,2.63]
[1746795859928,26.6,172.69,172.68,5.7919]
[1746795860830,5.7909,172.71,172.68,5.7919]
[1746795861025,32.3909,172.71,172.68,5.7919]
[1746795861225,17.48261094,172.75,172.7,5.7911]
[1746795861226,5.7903,172.73,172.7,5.7911]
[1746795861426,26.6,172.71,172.7,5.7911]
[1746795861626,26.6,172.71,172.65,2.63]
[1746795861830,26.6,172.71,172.68,5.7917]
[1746795862030,26.6,172.71,172.65,2.63]
[1746795862733,357.0,172.76,172.65,2.63]
[1746795862925,26.6,172.76,172.66,26.6]
[1746795864028,26.6,172.76,172.75,5.7895]
[1746795864529,5.7886,172.78,172.75,5.7895]
[1746795864729,32.3886,172.78,172.75,5.7895]
[1746795864931,5.7889,172.77,172.74,5.7898]
[1746795865131,26.6,172.78,172.66,26.6]
[1746795865428,1.00767337,172.88,172.68,11.5834]
[1746795865630,5.7875,172.81,172.77,5.7886]
[1746795865924,26.6,172.81,172.71,26.6]
[1746795866131,26.6,172.81,172.8,5.7879]
[1746795867637,26.6,172.81,172.75,26.6]
[1746795867840,43.47101094,172.81,172.7,464.0605]
[1746795868031,5.7884,172.79,172.71,6.12906346]